Cogmind - Beta 15 @@@ ROGUE MODE // 2025.07.14 @ 20:21:44 Player: winnking222 Result: Destroyed by Piercing Trap Performance ------------- Evolutions (0) 0 Regions Visited (2) 400 Robots Destroyed (24) 120 Value Destroyed (528) 528 Prototype IDs (12) 240 Alien Tech Used (0) 0 Bonus (60) 60 TOTAL SCORE: 1348 Bonus ------- Follower Combat Kills 60 Cogmind --------- Core Integrity 0/250 Matter 300/300 Energy 96/100 System Corruption 0% Temperature Cool (2) Movement Treading (160) Location -10/Subcaves Parts ------- > --- POWER (1) -------- Subdweller Power Source > --- PROPULSION (2) --- Light Treads Spiked Treads > --- UTILITY (2) ------ Small Storage Unit V3-11A's Pendant > --- WEAPON (2) ------- Subdweller Laser Battle Cannon > --- INVENTORY (8) ---- Subdweller Monowheel Large Matter Pod (150) Seismic Detector Gun Armor Scrap Shield Subdweller Machine Gun Heavy Battle Rifle Peak State ------------ > --- POWER ------------ Subdweller Power Source > --- PROPULSION ------- Light Treads Spiked Treads > --- UTILITY ---------- Small Storage Unit V3-11A's Pendant > --- WEAPON ----------- Subdweller Laser Battle Cannon > --- INVENTORY -------- Subdweller Monowheel Large Matter Pod Gun Armor Scrap Shield Subdweller Machine Gun Subdweller Machine Gun Ripper [Rating: 15] Favorites ----------- Power Subdweller Power Source Engine Subdweller Power Source Propulsion Light Treads Treads Light Treads Utility Small Storage Unit Device Seismic Detector Storage Small Storage Unit Weapon Subdweller Laser Energy Gun Subdweller Laser Ballistic Gun Light Assault Rifle Ballistic Cannon Battle Cannon Build | -11 -10 -10 ------- Run | Yrd Mat Sub Slots Evolved . | . . . Power . | . . . Propulsion . | . . . Utility . | . . . Weapon . | . . . Parts Attached 18 | 7 . 11 Power 5 | 1 . 4 Engine 5 | 1 . 4 Core . | . . . Reactor . | . . . Propulsion 4 | 2 . 2 Treads 4 | 2 . 2 Leg . | . . . Wheel . | . . . Hover . | . . . Flight . | . . . Utility 4 | 2 . 2 Device 3 | 1 . 2 Storage 1 | 1 . . Processor . | . . . Hackware . | . . . Protection . | . . . Artifact . | . . . Weapon 5 | 2 . 3 Energy Gun 3 | 1 . 2 Energy Cannon . | . . . Ballistic Gun 1 | 1 . . Ballistic Cannon 1 | . . 1 Launcher . | . . . Special Weapon . | . . . Impact Weapon . | . . . Slashing Weapon . | . . . Piercing Weapon . | . . . Special Melee Weapon . | . . . Unidentified Prototypes 1 | . . 1 Parts Lost 3 | . . 3 Power 1 | . . 1 Propulsion 1 | . . 1 Utility 1 | . . 1 Weapon . | . . . Highest Loss Streak 1 | . . 1 To Critical Strikes . | . . . Average Backups 7 | 3 6 7 Power . | . 1 . Propulsion 2 | 2 3 2 Utility 2 | . 2 3 Weapon 1 | . . 2 Tool/Special . | . . . Unused Backups 11 | . . 11 Power . | . . . Propulsion 4 | . . 4 Utility 4 | . . 4 Weapon 3 | . . 3 Tool/Special . | . . . Average Slot Usage (%) 98 | . 100 98 Engine 12 | . 14 12 Treads 27 | . 28 27 Device 13 | . 14 13 Storage 14 | . 14 14 Energy Gun 21 | . 14 22 Ballistic Gun 1 | . 14 . Ballistic Cannon 4 | . . 5 Peak Build Rating 15 | 7 7 15 Average Rating 10 | 6 7 11 On Entrance 4 | . 7 7 Naked Turns . | . . . Heaviest Build 18 | 12 12 18 Greatest Support 40 | 40 40 40 Greatest Overweight (x) . | . . . Average Overweight (x) . | . . . Largest Inventory Capacity 8 | 8 8 8 Average Capacity 7 | 7 8 8 Most Carried 8 | 6 7 8 Average Carried 7 | 3 6 7 Final Capacity 8 | 8 8 8 Final Carried 8 | 6 7 8 Class Distribution -------------------- 100% | Mutant Dominant Class ---------------- Mutant | -10/Materials Mutant | -10/Subcaves Resources | -11 -10 -10 ----------- Run | Yrd Mat Sub Matter Collected 597 | 298 46 253 Remotely . | . . . Salvage Created 765 | 218 101 446 Parts 62 | 29 4 29 Haulers Intercepted . | . . . Recyclers Shooed . | . . . Parts Field Recycled . | . . . Retrieved Matter . | . . . Parts Self-Destructed 19 | . . 19 Prevented . | . . . Kills | -11 -10 -10 ------- Run | Yrd Mat Sub Combat Hostiles Destroyed 14 | . 2 12 Guns 12 | . 1 11 Classes Destroyed 6 | 2 1 3 Worker 1 | 1 . . Tunneler 9 | 9 . . Swarmer 3 | . . 3 Grunt 4 | . 2 2 Sentry 1 | . . 1 Subdweller 6 | . . 6 Best Kill Streak 3 | 3 2 3 Combat Bots Only 3 | . 2 3 Max Kills in Single Turn 1 | 1 1 1 Gunslinging . | . . . Exploded . | . . . Melee . | . . . Uniques/NPCs Destroyed . | . . . Combat | -11 -10 -10 -------- Run | Yrd Mat Sub Hostile Shots Fired 80 | . 21 59 Missed 26 | . 7 19 Hits 54 | . 14 40 Projectile 54 | . 14 40 Damage Taken 957 | . 193 764 Core 252 | . 104 148 Absorbed by Shields . | . . . Core Remaining (%) 100 | 100 . . Volleys Fired 120 | 28 9 83 Largest 2 | 2 2 2 Hottest 110 | 70 70 110 Shots Fired 240 | 56 18 166 Gun 236 | 56 18 162 Cannon 4 | . . 4 Launcher . | . . . Special . | . . . Kinetic 56 | 28 9 19 Thermal 184 | 28 9 147 Explosive . | . . . Electromagnetic . | . . . Robot Hit Streak 21 | 4 4 21 Robot Miss Streak 4 | 4 3 2 Penetration Max . | . . . Secondary Targets . | . . . Shots Hit Robots 91 | 26 12 53 Core Hits 36 | 14 5 17 Critical Kills 1 | . . 1 Critical Parts Destroyed . | . . . Critical Strikes 7 | 1 1 5 Burn 5 | 1 1 3 Destroy 2 | . . 2 Melee Attacks . | . . . Impact . | . . . Slashing . | . . . Piercing . | . . . Sneak Attacks . | . . . Combat Hostiles . | . . . Follow-up Attacks . | . . . Damage Inflicted 1284 | 296 136 852 Guns 1284 | 296 136 852 Cannons . | . . . Explosions . | . . . Melee . | . . . Ramming . | . . . Kinetic 250 | 134 48 68 Thermal 1034 | 162 88 784 Explosive . | . . . Electromagnetic . | . . . Impact . | . . . Slashing . | . . . Piercing . | . . . Highest Corruption . | . . . Average Corruption . | . . . Corruption Purged . | . . . Corruption Blocked . | . . . Overload Shots . | . . . Overflow Damage . | . . . Projectiles . | . . . Explosions . | . . . Melee . | . . . Knockbacks . | . . . Impact . | . . . Kinetic . | . . . Secondary . | . . . Self-Inflicted Damage . | . . . Shots . | . . . Rammed . | . . . Targets Rammed . | . . . Kicked . | . . . Crushed . | . . . Highest Temperature 237 | 90 237 6 Average Temperature 53 | 29 127 2 Received Heat Transfer 285 | . 117 168 Siege Activations . | . . . Martial Activations . | . . . Shielding Activations . | . . . Robots Disrupted . | . . . Combat Hostiles . | . . . Robots Corrupted . | . . . Combat Hostiles . | . . . Parts Fried . | . . . Impact Corruptions . | . . . Robots Melted 2 | . 1 1 Combat Hostiles 2 | . 1 1 Parts Melted 7 | 2 1 4 Heat Transferred 2535 | 555 333 1647 Parts Sabotaged . | . . . Parts Stolen . | . . . Parts Stripped . | . . . Power Chain Reactions . | . . . Alert | -11 -10 -10 ------- Run | Yrd Mat Sub Maximum Alert Level . | . . . Low Security (%) 100 | 100 100 . Level 1 . | . . . Level 2 . | . . . Level 3 . | . . . Level 4 . | . . . Level 5 . | . . . High Security . | . . . Max Security . | . . . Peak Influence 40 | 10 40 . Initial 3 | . 3 . Average 2 | 1 6 . Influence Increases 265 | 50 50 165 Destroy 0b10 Robot/C 160 | . 40 120 Destroy 0b10 Robot/NC 50 | 50 . . Destroy Leader 10 | . 10 . Lose Combat Pursuer 45 | . . 45 Influence Decreases 265 | 45 25 195 Entered New Map 17 | . 2 15 Time Decay 248 | 45 23 180 Squads Dispatched 1 | . 1 . Investigation . | . . . Extermination . | . . . Reinforcement 1 | . 1 . Assault . | . . . Garrison . | . . . Intercept . | . . . Searches Triggered . | . . . Construction Impeded . | . . . Haulers Reinforced . | . . . Active Scanning Responses . | . . . Cargo Convoy Interrupts . | . . . Stealth | -11 -10 -10 --------- Run | Yrd Mat Sub Distress Signals . | . . . Communications Jammed . | . . . Distress Signals . | . . . Times Spotted 22 | . 6 16 Peak Tracking Total 5 | . 4 5 Tactical Retreats 1 | . . 1 Traps | -11 -10 -10 ------- Run | Yrd Mat Sub Traps Triggered 1 | . . 1 Indirectly . | . . . Trap Hack Attempts . | . . . Triggered . | . . . Disarmed . | . . . Reprogrammed . | . . . Reused . | . . . Traps Extracted . | . . . Installed . | . . . Triggered . | . . . Machines | -11 -10 -10 ---------- Run | Yrd Mat Sub Machines Disabled 1 | . . 1 Max in Single Turn 1 | . . 1 Machines Repaired . | . . . Machines Dismantled . | . . . Machines Sabotaged . | . . . Overloaded Fab Kills . | . . . Hacking | -11 -10 -10 --------- Run | Yrd Mat Sub Machines Accessed 4 | . 2 2 Terminals 2 | . 2 . Fabricators . | . . . Repair Stations . | . . . Recycling Units . | . . . Scanalyzers . | . . . Garrison Access . | . . . Total Hacks 9 | . 4 5 Successful 7 | . 2 5 Failed 2 | . 2 . Catastrophic . | . . . Database Lockouts . | . . . Manual 1 | . 1 . Terminals 4 | . 4 . Fabricators . | . . . Repair Stations . | . . . Recycling Units . | . . . Scanalyzers . | . . . Garrison Access . | . . . Terminal Hacks 7 | . 2 5 Record 4 | . . 4 Robot Analysis 1 | . 1 . Zone Layout 1 | . 1 . Proto ID Catalog 1 | . . 1 Fabricator Hacks . | . . . Repair Station Hacks . | . . . Recycling Unit Hacks . | . . . Scanalyzer . | . . . Garrison Access Hacks . | . . . Unauthorized Hacks . | . . . Terminals . | . . . Fabricators . | . . . Repair Stations . | . . . Recycling Units . | . . . Scanalyzers . | . . . Garrison Access . | . . . Data Cores Recovered . | . . . Used . | . . . Hacking Detections 2 | . 2 . Full Trace Events . | . . . Feedback Events . | . . . Feedback Blocked . | . . . Robot Schematics Acquired . | . . . Robots Built . | . . . Authchips . | . . . Time . | . . . Total Robot Build Rating . | . . . Part Schematics Acquired . | . . . Parts Built . | . . . Authchips . | . . . Time . | . . . Total Part Build Rating . | . . . Parts Repaired . | . . . Time . | . . . Parts Recycled . | . . . Recycled Matter . | . . . Retrieved Matter . | . . . Retrieved Components . | . . . Parts Scanalyzed . | . . . Part Schematics Acquired . | . . . Parts Damaged . | . . . Bothacking | -11 -10 -10 ------------ Run | Yrd Mat Sub Used RIF Installer . | . . . Robots Hacked . | . . . Non-combat . | . . . Combat . | . . . Robot Hacks Applied . | . . . Relay Couplers Released . | . . . Fabnet Peak Effective % . | . . . Robots Rewired . | . . . Allies Hacked . | . . . Hacks Repelled . | . . . Allies | -11 -10 -10 -------- Run | Yrd Mat Sub Total Allies 2 | . . 2 Largest Group 2 | . . 2 Highest-Rated Group 38 | . . 38 Highest-Rated Ally 19 | . . 19 Total Orders . | . . . Ally Attacks 6 | . . 6 Total Damage 138 | . . 138 Kills 2 | . . 2 Allies Corrupted . | . . . Allies Melted . | . . . Intel | -11 -10 -10 ------- Run | Yrd Mat Sub Active Infowar (turns) 3109 | 128 197 2784 Seismic 3109 | 128 197 2784 Robot Analysis Total 1 | . 1 . Derelict Logs Recovered 2 | . . 2 Drone Launches . | . . . Drone Recoveries . | . . . Exploration | -11 -10 -10 ------------- Run | Yrd Mat Sub Turns Passed 3692 | 373 197 3122 Spaces Moved 2021 | 182 98 1741 Core 14 | 14 . . Treads 2007 | 168 98 1741 Legs . | . . . Wheels . | . . . Hover . | . . . Flight . | . . . Fastest Speed 50 | 50 160 160 Average Speed 159 | 151 160 160 Slowest Speed 160 | 160 160 160 Overloaded Moves . | . . . Propulsion Burnouts . | . . . Robots Hopped . | . . . Potential Cave-ins . | . . . Cave-ins Triggered . | . . . Exploration Rate (%) 40 | 6 24 91 Regions Visited 2 Branch Regions 1 Pre-discovered Areas 3 | . . 3 Known Exits Taken . | . . . Unknown Exits Taken 2 | 1 1 . Scrap Searched 17 | . . 17 Spaces Dug . | . . . Terrain Destroyed 1 | . . 1 Melee . | . . . Projectile 1 | . . 1 AOE . | . . . Terrain Rammed . | . . . Walls Destroyed . | . . . Machines Disabled . | . . . Actions | -11 -10 -10 --------- Run | Yrd Mat Sub Total 2273 | 229 122 1922 Wait 77 | . 15 62 Move 2019 | 181 97 1741 Hop . | . . . Pick Up 25 | 13 1 11 Fast Attach 3 | . . 3 Attach 10 | 7 . 3 Detach . | . . . Swap 5 | . . 5 Drop 14 | . . 14 Fire 120 | 28 9 83 Melee . | . . . Ram . | . . . Kick . | . . . Crush . | . . . Escape Stasis . | . . . Rewire . | . . . Trap . | . . . Miscellaneous . | . . . Route ------- -11/Scrapyard -10/Materials -10/Subcaves (discovered 3 exits: [*Mat x2] / [*Rec]) History --------- Turn | Location | Event 7 | -11/Scrapyard | Discovered new exit (range 15) 374 | -11/Scrapyard | Entered Materials 375 | -10/Materials | Build established: Mutant 558 | -10/Materials | Discovered new exit (range 8) 571 | -10/Materials | Entered Subcaves 572 | -10/Subcaves | Approached by a straggling Scientist 608 | -10/Subcaves | Shifting Twisted Machinery released Spk. Treads 663 | -10/Subcaves | Core integrity fell below 50% 710 | -10/Subcaves | Discovered new exit (range 15) 890 | -10/Subcaves | Learned location of Storage (-9) 933 | -10/Subcaves | Shifting Twisted Machinery released Battle Cannon 948 | -10/Subcaves | Shifting Twisted Machinery released Sub. Monowheel 1113 | -10/Subcaves | Learned location of Zion (-6) 1113 | -10/Subcaves | Met a Zionite searching for "candidates" 1298 | -10/Subcaves | Discovered new exit (range 10) 1405 | -10/Subcaves | Discovered new exit (range 16) 1607 | -10/Subcaves | Visited Clippyterm 1612 | -10/Subcaves | Learned 40 Factory zone layouts 1612 | -10/Subcaves | Learned Factory stockpile data 1988 | -10/Subcaves | Core integrity fell below 20% 2449 | -10/Subcaves | Shifting Twisted Machinery released Battle Rifle 2499 | -10/Subcaves | Disturbed a concealed Subdweller 2585 | -10/Subcaves | Shifting Twisted Machinery released Sub. Monowheel 2644 | -10/Subcaves | Visited 4L-MR0's lab 2660 | -10/Subcaves | Found Gun Armor 3105 | -10/Subcaves | Learned location of Mines (-9) 3368 | -10/Subcaves | Visited triangular shrine 3378 | -10/Subcaves | Found Prototype Device 3378 | -10/Subcaves | Identified V3-11A's Pendant 3383 | -10/Subcaves | Befriended Subdweller 3535 | -10/Subcaves | Disturbed a concealed Subdweller 3598 | -10/Subcaves | Befriended Subdweller 3693 | -10/Subcaves | Destroyed by Piercing Trap Last Messages --------------- 03646_ Subatomizers dissect the Sub. Laser. 03650_ Searching scrap... 03650_ Found Lgt. Humpback. 03650_ Found Flamer. 03650_ Found 55 Matter. 03661_ Subatomizers dissect the Sub. Laser. 03672_ Searching scrap... 03672_ Found Barrage Gun. 03672_ Found Sub. Beam Cannon. 03672_ Found 59 Matter. 03677_ Searching scrap... 03677_ Found Sub. Laser. 03677_ Found 58 Matter. 03689_ Subatomizers dissect the Sub. Laser. 03690_ Searching scrap... 03690_ Found Mak. Hammer. 03690_ Found Flamer. 03690_ Found 44 Matter. 03693_ Triggered Piercing Trap. 03693_ Spikes shoot up from the floor. Map ----- +----------------------------------------------------+ | ??????????# #" %"## ### #???# ##????? | | ??????????# #""]%"# #????###?????? | | ??????????# ##%""## #????????????? | | ??????????# ##### ##????????????? | | ??????????# ##?????????????? | | ??????????##### #??????????????? | | ??????????????# #??????????????? | | ??????????????# #??????????????? | | ??????????????# ## #??????????????? | | ??????????????### # #??????????????? | | ???????????????# ##?????????????? | | ???????????????## ## #?????????????? | | ????????????????# # #?????????????? | | ??????#####?##### #?????????????? | | ?????##%""###" ### #?????????????? | | ?????#%][" #%] <### ####?????????????? | | ?????# [ #%! ## #????????????????? | | ?????# " [[= <## ######???????????? | | ?????#" !%= # #???????????? | | ?????# " [%# ## ## #???????????? | | ?????# "|### # #" #???????????? | | ?????###!%## # ##???????????? | | ???????##### # #?????###????? | | ??????## # # " # ##??### ##?### | | ?????##[ # R ###" # #### ### # | | ?????#%] # @ ## ## ## | | ?????#""["#< |/ ### ### | | ?????## %###